fUSD/lending_fUSD_20240628
["ID","MTS","AMOUNT","RATE_DAILY","PERIOD"]
[330551233,1719561217917,-2667.99,0.00022739,3]
[330551234,1719561217927,-823.18,0.00022739,3]
[330551235,1719561217936,-1063.1,0.00022739,3]
[330551236,1719561217946,-1293.08,0.00022739,3]
[330551237,1719561217958,-6250.57,0.00022739,3]
[330551238,1719561217969,-500.0,0.00022739,3]
[330551239,1719561217979,-5103.03,0.00022739,3]
[330551240,1719561217990,-4756.33,0.00022739,3]
[330551241,1719561217999,-721.31,0.00022739,3]
[330551242,1719561218009,-1439.83,0.00022739,3]
[330551243,1719561218019,-2458.51,0.00022739,3]
[330551244,1719561218028,-500.0,0.00022739,3]
[330551245,1719561218038,-500.0,0.00022739,3]
[330551246,1719561218048,-1211.11,0.00022739,3]
[330551247,1719561218058,-770.64,0.00022739,3]
[330551248,1719561218068,-552.09,0.00022739,3]
[330551249,1719561218077,-3750.61,0.00022739,3]
[330551250,1719561218089,-500.0,0.00022739,3]
[330551251,1719561218101,-500.0,0.00022739,3]
[330551252,1719561218112,-2098.22,0.00022739,3]
[330551253,1719561218123,-500.0,0.00022739,3]
[330551254,1719561218134,-754.56,0.00022739,3]
[330551255,1719561218144,-4491.42,0.00022739,3]
[330551256,1719561218154,-500.0,0.00022739,3]
[330551257,1719561218164,-2438.38,0.00022739,3]
[330551258,1719561218174,-2020.73,0.00022739,3]
[330551259,1719561218183,-1992.71,0.00022739,3]
[330551260,1719561218193,-781.62,0.00022739,3]
[330551261,1719561218203,-1432.47,0.00022739,3]
[330551262,1719561218213,-5534.77,0.00022739,3]
[330551263,1719561218222,-885.59,0.00022739,3]
[330551264,1719561218231,-500.0,0.00022739,3]
[330551265,1719561218241,-1548.3,0.00022739,3]
[330551266,1719561218251,-1994.67,0.00022739,3]
[330551267,1719561218260,-1403.1,0.00022739,3]
[330551268,1719561218269,-2686.24,0.00022739,3]
[330551269,1719561218279,-814.93,0.00022739,3]
[330551270,1719561218289,-526.81,0.00022739,3]
[330551271,1719561218298,-4164.92,0.00022739,3]
[330551272,1719561218308,-3931.36,0.00022739,3]
[330551273,1719561218317,-475.48189112,0.00022739,3]
[330551274,1719561218327,-1627.14,0.00022739,3]
[330551275,1719561218336,-500.0,0.00022739,3]
[330551276,1719561218346,-1739.9,0.00022739,3]
[330551277,1719561218355,-1201.25,0.00022739,3]
[330551278,1719561218365,-823.37,0.00022739,3]
[330551279,1719561218374,-1677.95,0.00022739,3]
[330551280,1719561218383,-2423.48,0.00022739,3]
[330551281,1719561218393,-500.0,0.00022739,3]
[330551282,1719561218403,-4579.29,0.00022739,3]
[330551283,1719561218412,-564.34,0.00022739,3]
[330551284,1719561218421,-500.0,0.00022739,3]
[330551285,1719561218431,-3220.4,0.00022739,3]
[330551286,1719561218440,-500.0,0.00022739,3]
[330551287,1719561218449,-4356.08,0.00022739,3]
[330551288,1719561218459,-2461.19,0.00022739,3]
[330551289,1719561218468,-575.39,0.00022739,3]
[330551290,1719561218477,-848.23,0.00022739,3]
[330551291,1719561218487,-571.54,0.00022739,3]
[330551292,1719561218496,-500.0,0.00022739,3]
[330551293,1719561218506,-10448.28,0.00022739,3]
[330551294,1719561218515,-1688.67,0.00022739,3]
[330551295,1719561218524,-662.7,0.00022739,3]
[330551296,1719561218533,-4745.96,0.00022739,3]
[330551297,1719561218543,-1372.06,0.00022739,3]
[330551298,1719561218552,-504.88,0.00022739,3]
[330551299,1719561218561,-500.0,0.00022739,3]
[330551300,1719561218571,-1056.34,0.00022739,3]
[330551301,1719561218581,-606.3,0.00022739,3]
[330551302,1719561218591,-1074.08,0.00022739,3]
[330551303,1719561218602,-2441.39,0.00022739,3]
[330551304,1719561218611,-2465.9,0.00022739,3]
[330551305,1719561218620,-1390.74,0.00022739,3]
[330551306,1719561218630,-1781.97,0.00022739,3]
[330551307,1719561218639,-935.7,0.00022739,3]
[330551308,1719561218648,-500.0,0.00022739,3]
[330551309,1719561218658,-500.0,0.00022739,3]
[330551310,1719561218667,-500.0,0.00022739,3]
[330551311,1719561218676,-525.03,0.00022739,3]
[330551312,1719561218687,-668.57,0.00022739,3]
[330551313,1719561218696,-500.0,0.00022739,3]
[330551314,1719561218707,-3285.77,0.00022739,3]
[330551315,1719561218716,-1463.5,0.00022739,3]
[330551316,1719561218725,-1552.82,0.00022739,3]
[330551317,1719561218734,-1287.58,0.00022739,3]
[330551318,1719561218743,-1253.08,0.00022739,3]
[330551319,1719561218753,-1221.61,0.00022739,3]
[330551320,1719561218762,-500.0,0.00022739,3]
[330551321,1719561218771,-162.17436508,0.00022739,3]
[330551322,1719561218781,-2098.47,0.00022739,3]
[330551323,1719561218791,-861.59,0.00022739,3]
[330551324,1719561218800,-1171.21,0.00022739,3]
[330551325,1719561218809,-500.0,0.00022739,3]
[330551326,1719561218818,-3809.85,0.00022739,3]
[330551327,1719561218827,-1526.48,0.00022739,3]
[330551328,1719561218836,-1044.61,0.00022739,3]
[330551329,1719561218845,-500.0,0.00022739,3]
[330551330,1719561218855,-2191.37,0.00022739,3]
[330551331,1719561218864,-2330.29,0.00022739,3]
[330551332,1719561218876,-1251.54,0.00022739,3]
[330551333,1719561218887,-3118.59,0.00022739,3]
[330551334,1719561218897,-1197.85,0.00022739,3]
[330551335,1719561218906,-611.60953227,0.00022739,3]
[330551336,1719561218917,-532.97,0.00022739,3]
[330551337,1719561218927,-2052.11,0.00022739,3]
[330551338,1719561218936,-500.0,0.00022739,3]
[330551339,1719561218946,-5026.87,0.00022739,3]
[330551340,1719561218961,-1566.0,0.00022739,3]
[330551341,1719561218971,-873.76,0.00022739,3]
[330551342,1719561218980,-3596.87,0.00022739,3]
[330551343,1719561218989,-1698.0,0.00022739,3]
[330551344,1719561218998,-1543.01,0.00022739,3]
[330551345,1719561219149,-3389.93,0.00022739,3]
[330551346,1719561219160,-2869.58,0.00022739,3]
[330551347,1719561219171,-648.91,0.00022739,3]
[330551348,1719561219181,-2335.36,0.00022739,3]
[330551349,1719561219191,-762.46,0.00022739,3]
[330551350,1719561219200,-595.54,0.00022739,3]
[330551351,1719561219210,-638.08,0.00022739,3]
[330551352,1719561219220,-978.5,0.00022739,3]
[330551353,1719561219230,-526.25,0.00022739,3]
[330551354,1719561219240,-780.19,0.00022739,3]
[330551355,1719561219249,-855.45,0.00022739,3]
[330551356,1719561219259,-1166.4,0.00022739,3]
[330551357,1719561219268,-779.68,0.00022739,3]
[330551358,1719561219278,-1703.63,0.00022739,3]
[330551359,1719561219288,-4108.34,0.00022739,3]
[330551360,1719561219298,-12184.84,0.00022739,3]
[330551361,1719561219307,-783.91,0.00022739,3]
[330551362,1719561219316,-655.17,0.00022739,3]
[330551363,1719561219326,-577.58,0.00022739,3]
[330551364,1719561219336,-1494.47,0.00022739,3]
[330551365,1719561219346,-1812.77,0.00022739,3]
[330551366,1719561219356,-1434.26,0.00022739,3]
[330551367,1719561219366,-803.64,0.00022739,3]
[330551368,1719561219376,-500.0,0.00022739,3]
[330551369,1719561219386,-500.0,0.00022739,3]
[330551370,1719561219396,-8612.7,0.00022739,3]
[330551371,1719561219406,-2570.43,0.00022739,3]
[330551372,1719561219416,-2233.3,0.00022739,3]
[330551373,1719561219426,-564.9,0.00022739,3]
[330551374,1719561219435,-833.81,0.00022739,3]
[330551375,1719561219445,-651.19,0.00022739,3]
[330551376,1719561219455,-990.66,0.00022739,3]
[330551377,1719561219466,-1393.07,0.00022739,3]
[330551378,1719561219475,-795.17,0.00022739,3]
[330551379,1719561219484,-7571.09,0.00022739,3]
[330551380,1719561219494,-1571.82,0.00022739,3]
[330551381,1719561219504,-803.77,0.00022739,3]
[330551382,1719561219513,-2442.19,0.00022739,3]
[330551383,1719561219523,-500.0,0.00022739,3]
[330551384,1719561219534,-500.0,0.00022739,3]
[330551385,1719561219544,-500.0,0.00022739,3]
[330551386,1719561219554,-1017.76,0.00022739,3]
[330551387,1719561219564,-985.98,0.00022739,3]
[330551388,1719561219574,-3900.49,0.00022739,3]
[330551389,1719561219584,-623.56,0.00022739,3]
[330551390,1719561219594,-510.44,0.00022739,3]
[330551391,1719561219604,-673.35,0.00022739,3]
[330551392,1719561219613,-3626.35,0.00022739,3]
[330551393,1719561219623,-974.54,0.00022739,3]
[330551394,1719561219633,-3571.61,0.00022739,3]
[330551395,1719561219643,-914.91,0.00022739,3]
[330551396,1719561219653,-4977.96,0.00022739,3]
[330551397,1719561219663,-1975.34,0.00022739,3]
[330551398,1719561219672,-668.22,0.00022739,3]
[330551399,1719561219682,-4103.33,0.00022739,3]
[330551400,1719561219692,-929.98,0.00022739,3]
[330551401,1719561219702,-2114.11,0.00022739,3]
[330551402,1719561219712,-690.61,0.00022739,3]
[330551403,1719561219721,-1628.46,0.00022739,3]
[330551404,1719561219732,-1444.66,0.00022739,3]
[330551405,1719561219742,-933.49,0.00022739,3]
[330551406,1719561219752,-2888.25,0.00022739,3]
[330551407,1719561219762,-1270.72,0.00022739,3]
[330551408,1719561219771,-3537.73,0.00022739,3]
[330551409,1719561219781,-1988.26,0.00022739,3]
[330551410,1719561219791,-646.8,0.00022739,3]
[330551411,1719561219801,-1016.96,0.00022739,3]
[330551412,1719561219811,-3537.83,0.00022739,3]
[330551413,1719561219821,-4400.98,0.00022739,3]
[330551414,1719561219831,-569.2588303,0.00022739,3]
[330551415,1719561219840,-233.80164117,0.00022739,3]
[330551416,1719561219851,-588.73,0.00022739,3]
[330551417,1719561219861,-768.32,0.00022739,3]
[330551418,1719561219875,-1070.33,0.00022739,3]
[330551419,1719561219885,-892.56,0.00022739,3]
[330551420,1719561219894,-743.46,0.00022739,3]
[330551421,1719561219905,-6545.79,0.00022739,3]
[330551422,1719561219916,-1231.54,0.00022739,3]
[330551423,1719561219926,-895.8,0.00022739,3]
[330551424,1719561219936,-500.0,0.00022739,3]
[330551425,1719561219946,-2097.83,0.00022739,3]
[330551426,1719561219958,-500.0,0.00022739,3]
[330551427,1719561219969,-3334.25,0.00022739,3]
[330551428,1719561219979,-3150.03,0.00022739,3]
[330551429,1719561219988,-500.0,0.00022739,3]
[330551430,1719561219998,-500.0,0.00022739,3]
[330551431,1719561220008,-610.61,0.00022739,3]
[330551432,1719561220018,-1099.72,0.00022739,3]
[330551433,1719561220028,-344.03394064,0.00022739,3]
[330551434,1719561220038,-1552.28,0.00022739,3]
[330551435,1719561220049,-500.0,0.00022739,3]
[330551436,1719561220059,-735.24,0.00022739,3]
[330551437,1719561220068,-1827.69,0.00022739,3]
[330551438,1719561220078,-2422.64,0.00022739,3]
[330551439,1719561220089,-3657.77,0.00022739,3]
[330551440,1719561220100,-500.0,0.00022739,3]
[330551441,1719561220110,-500.0,0.00022739,3]
[330551442,1719561220120,-2088.49,0.00022739,3]
[330551443,1719561220131,-561.79,0.00022739,3]
[330551444,1719561220140,-1243.28,0.00022739,3]
[330551445,1719561220150,-1894.39,0.00022739,3]
[330551446,1719561220160,-890.94,0.00022739,3]
[330551447,1719561220169,-2029.23,0.00022739,3]
[330551448,1719561220179,-14987.84,0.00022739,3]
[330551449,1719561220189,-1128.27,0.00022739,3]
[330551450,1719561220198,-2561.23,0.00022739,3]
[330551451,1719561220208,-500.0,0.00022739,3]
[330551452,1719561220217,-604.19,0.00022739,3]
[330551453,1719561220227,-1302.81,0.00022739,3]
[330551454,1719561220237,-2467.25,0.00022739,3]
[330551455,1719561220247,-580.74,0.00022739,3]
[330551456,1719561220256,-2378.96,0.00022739,3]
[330551457,1719561220266,-519.05,0.00022739,3]
[330551458,1719561220276,-696.42,0.00022739,3]
[330551459,1719561220286,-1077.61,0.00022739,3]
[330551460,1719561220296,-3444.9,0.00022739,3]
[330551461,1719561220306,-1810.22,0.00022739,3]
[330551462,1719561220315,-878.91,0.00022739,3]
[330551463,1719561220325,-5919.42,0.00022739,3]
[330551464,1719561220335,-931.76,0.00022739,3]
[330551465,1719561220346,-1058.14,0.00022739,3]
[330551466,1719561220356,-1072.86,0.00022739,3]
[330551467,1719561220366,-1191.34,0.00022739,3]
[330551468,1719561220376,-1586.1,0.00022739,3]
[330551469,1719561220388,-3215.98,0.00022739,3]
[330551470,1719561220398,-687.47,0.00022739,3]
[330551471,1719561220409,-1219.48,0.00022739,3]
[330551472,1719561220419,-836.18,0.00022739,3]
[330551473,1719561220428,-12606.71,0.00022739,3]
[330551474,1719561220438,-625.82,0.00022739,3]
[330551475,1719561220448,-1319.12,0.00022739,3]
[330551476,1719561220458,-1059.97,0.00022739,3]
[330551477,1719561220469,-1041.16,0.00022739,3]
[330551478,1719561220480,-1776.67,0.00022739,3]
[330551479,1719561220489,-341.27085755,0.00022739,3]
[330551480,1719561220500,-500.0,0.00022739,3]
[330551481,1719561220510,-833.16,0.00022739,3]
[330551482,1719561220520,-852.24,0.00022739,3]
[330551483,1719561220530,-832.89,0.00022739,3]
[330551484,1719561220539,-500.0,0.00022739,3]
[330551485,1719561220550,-500.0,0.00022739,3]
[330551486,1719561220560,-1285.7,0.00022739,3]
[330551487,1719561220570,-1115.81,0.00022739,3]
[330551488,1719561220579,-667.48,0.00022739,3]
[330551489,1719561220590,-620.27,0.00022739,3]
[330551490,1719561220602,-1542.91,0.00022739,3]
[330551491,1719561220612,-1980.39,0.00022739,3]
[330551492,1719561220622,-1594.11,0.00022739,3]
[330551493,1719561220632,-500.0,0.00022739,3]
[330551494,1719561220642,-500.0,0.00022739,3]
[330551495,1719561220652,-1976.95,0.00022739,3]
[330551496,1719561220663,-1240.01,0.00022739,3]
[330551497,1719561220674,-1834.65,0.00022739,3]
[330551498,1719561220684,-1531.63,0.00022739,3]
[330551499,1719561220694,-893.21,0.00022739,3]
[330551500,1719561220704,-532.59,0.00022739,3]
[330551501,1719561220714,-1176.17,0.00022739,3]
[330551502,1719561220724,-4339.37,0.00022739,3]
[330551503,1719561220734,-500.0,0.00022739,3]
[330551504,1719561220744,-791.78,0.00022739,3]
[330551505,1719561220755,-1096.31,0.00022739,3]
[330551506,1719561220765,-500.0,0.00022739,3]
[330551507,1719561220775,-1124.86,0.00022739,3]
[330551508,1719561220785,-1291.49,0.00022739,3]
[330551509,1719561220796,-504.91,0.00022739,3]
[330551510,1719561220806,-588.38,0.00022739,3]
[330551511,1719561220816,-500.0,0.00022739,3]
[330551512,1719561220826,-500.0,0.00022739,3]
[330551513,1719561220835,-1639.09,0.00022739,3]
[330551514,1719561220847,-1061.55,0.00022739,3]
[330551515,1719561220856,-1465.35,0.00022739,3]
[330551516,1719561220866,-500.0,0.00022739,3]
[330551517,1719561220878,-1924.82,0.00022739,3]
[330551518,1719561220889,-2089.57,0.00022739,3]
[330551519,1719561220899,-734.27,0.00022739,3]
[330551520,1719561220909,-948.23,0.00022739,3]
[330551521,1719561220918,-3576.87,0.00022739,3]
[330551522,1719561220928,-3780.4,0.00022739,3]
[330551523,1719561220937,-500.0,0.00022739,3]
[330551524,1719561220947,-946.83,0.00022739,3]
[330551525,1719561220959,-770.26,0.00022739,3]
[330551526,1719561220969,-3935.43,0.00022739,3]
[330551527,1719561220979,-500.0,0.00022739,3]
[330551528,1719561220988,-1446.14,0.00022739,3]
[330551529,1719561220998,-2365.29,0.00022739,3]
[330551530,1719561221008,-1659.75,0.00022739,3]
[330551531,1719561221019,-500.0,0.00022739,3]
[330551532,1719561221031,-500.0,0.00022739,3]
[330551533,1719561221041,-4503.97,0.00022739,3]
[330551534,1719561221051,-950.23,0.00022739,3]
[330551535,1719561221061,-3311.36,0.00022739,3]
[330551536,1719561221070,-500.0,0.00022739,3]
[330551537,1719561221080,-1322.58,0.00022739,3]
[330551538,1719561221090,-783.88,0.00022739,3]
[330551539,1719561221100,-1914.45,0.00022739,3]
[330551540,1719561221110,-500.0,0.00022739,3]
[330551541,1719561221120,-3498.8,0.00022739,3]
[330551542,1719561221130,-1962.72,0.00022739,3]
[330551543,1719561221141,-500.0,0.00022739,3]
[330551544,1719561221152,-1641.9,0.00022739,3]
[330551545,1719561221165,-500.0,0.00022739,3]
[330551546,1719561221175,-612.16,0.00022739,3]
[330551547,1719561221184,-685.98,0.00022739,3]
[330551548,1719561221194,-637.51,0.00022739,3]
[330551549,1719561221204,-3117.56,0.00022739,3]
[330551550,1719561221215,-1141.3,0.00022739,3]
[330551551,1719561221225,-500.0,0.00022739,3]
[330551552,1719561221234,-4395.4,0.00022739,3]
[330551553,1719561221244,-3970.07,0.00022739,3]
[330551554,1719561221254,-1264.09,0.00022739,3]
[330551555,1719561221263,-2447.28,0.00022739,3]
[330551556,1719561221272,-500.0,0.00022739,3]
[330551557,1719561221282,-3602.08,0.00022739,3]
[330551558,1719561221292,-764.6,0.00022739,3]
[330551559,1719561221302,-1319.29,0.00022739,3]
[330551560,1719561221312,-3867.01,0.00022739,3]
[330551561,1719561221322,-8127.46,0.00022739,3]
[330551562,1719561221332,-2128.6,0.00022739,3]
[330551563,1719561221342,-2004.62,0.00022739,3]
[330551564,1719561221656,-543.13,0.00022739,3]
[330551565,1719561221707,-964.57,0.00022739,3]
[330551566,1719561221717,-5636.27,0.00022739,3]
[330551567,1719561221728,-500.0,0.00022739,3]
[330551568,1719561221738,-4918.69,0.00022739,3]
[330551569,1719561221748,-2955.61,0.00022739,3]
[330551570,1719561221758,-4066.1,0.00022739,3]
[330551571,1719561221768,-664.5,0.00022739,3]
[330551572,1719561221778,-4196.26,0.00022739,3]
[330551573,1719561221787,-2426.91,0.00022739,3]
[330551574,1719561221797,-500.0,0.00022739,3]
[330551575,1719561221807,-500.0,0.00022739,3]
[330551576,1719561221817,-571.57,0.00022739,3]
[330551577,1719561221827,-619.41,0.00022739,3]
[330551578,1719561221837,-1310.02,0.00022739,3]
[330551579,1719561221848,-3529.65,0.00022739,3]
[330551580,1719561221857,-790.68,0.00022739,3]
[330551581,1719561221868,-1259.18,0.00022739,3]
[330551582,1719561221882,-803.47,0.00022739,3]
[330551583,1719561221891,-1996.62,0.00022739,3]
[330551584,1719561221900,-3541.7,0.00022739,3]
[330551585,1719561221911,-863.97,0.00022739,3]
[330551586,1719561221920,-530.3,0.00022739,3]
[330551587,1719561221930,-676.52,0.00022739,3]
[330551588,1719561221940,-500.0,0.00022739,3]
[330551589,1719561221951,-731.62,0.00022739,3]
[330551590,1719561221960,-7586.47,0.00022739,3]
[330551591,1719561221970,-617.21582094,0.00022739,3]
[330551592,1719561221979,-1475.96,0.00022739,3]
[330551593,1719561221990,-955.45,0.00022739,3]
[330551594,1719561222000,-1270.09,0.00022739,3]
[330551595,1719561222009,-1229.77,0.00022739,3]
[330551596,1719561222019,-2329.0,0.00022739,3]
[330551597,1719561222029,-773.16,0.00022739,3]
[330551598,1719561222038,-1393.57,0.00022739,3]
[330551599,1719561222049,-986.15,0.00022739,3]
[330551600,1719561222058,-1485.78,0.00022739,3]
[330551601,1719561222069,-1707.42,0.00022739,3]
[330551602,1719561222080,-500.0,0.00022739,3]
[330551603,1719561222091,-768.85,0.00022739,3]
[330551604,1719561222103,-2012.41,0.00022739,3]
[330551605,1719561222113,-921.17,0.00022739,3]
[330551606,1719561222123,-500.0,0.00022739,3]
[330551607,1719561222135,-5063.06,0.00022739,3]
[330551608,1719561222145,-2449.33,0.00022739,3]
[330551609,1719561222156,-2037.45,0.00022739,3]
[330551610,1719561222166,-500.0,0.00022739,3]
[330551611,1719561222177,-1779.04,0.00022739,3]
[330551612,1719561222188,-500.0,0.00022739,3]
[330551613,1719561222198,-9301.47,0.00022739,3]
[330551614,1719561222207,-1017.79,0.00022739,3]
[330551615,1719561222216,-2900.72,0.00022739,3]
[330551616,1719561222225,-526.59,0.00022739,3]
[330551617,1719561222235,-663.42,0.00022739,3]
[330551618,1719561222245,-500.0,0.00022739,3]
[330551619,1719561222254,-500.0,0.00022739,3]
[330551620,1719561222264,-674.65,0.00022739,3]
[330551621,1719561222274,-2537.99,0.00022739,3]
[330551622,1719561222285,-500.0,0.00022739,3]
[330551623,1719561222296,-1420.13,0.00022739,3]
[330551624,1719561222305,-1037.85,0.00022739,3]
[330551625,1719561222315,-3320.06,0.00022739,3]
[330551626,1719561222324,-3319.78,0.00022739,3]
[330551627,1719561222334,-56773.66,0.00022739,3]
[330551628,1719561222343,-634.63,0.00022739,3]
[330551629,1719561222354,-555.58,0.00022739,3]
[330551630,1719561222364,-625.07,0.00022739,3]
[330551631,1719561222373,-2200.88,0.00022739,3]
[330551632,1719561222383,-941.38,0.00022739,3]
[330551633,1719561222393,-510.63,0.00022739,3]
[330551634,1719561222403,-2030.64,0.00022739,3]
[330551635,1719561222412,-670.5,0.00022739,3]
[330551636,1719561222421,-1092.89,0.00022739,3]
[330551637,1719561222431,-680.1,0.00022739,3]
[330551638,1719561222441,-500.0,0.00022739,3]
[330551639,1719561222451,-916.14,0.00022739,3]
[330551640,1719561222461,-1305.67,0.00022739,3]
[330551641,1719561222471,-608.88,0.00022739,3]
[330551642,1719561222480,-2094.61,0.00022739,3]
[330551643,1719561222490,-912.19,0.00022739,3]
[330551644,1719561222499,-624.72,0.00022739,3]
[330551645,1719561222509,-3883.66,0.00022739,3]
[330551646,1719561222519,-575.25,0.00022739,3]
[330551647,1719561222529,-1750.92,0.00022739,3]
[330551648,1719561222539,-586.86,0.00022739,3]
[330551649,1719561222548,-1644.79,0.00022739,3]
[330551650,1719561222558,-2240.25,0.00022739,3]
[330551651,1719561222567,-500.0,0.00022739,3]
[330551652,1719561222577,-3442.26,0.00022739,3]
[330551653,1719561222587,-785.73,0.00022739,3]
[330551654,1719561222598,-2119.76,0.00022739,3]
[330551655,1719561222608,-3279.62,0.00022739,3]
[330551656,1719561222617,-1177.19,0.00022739,3]
[330551657,1719561222627,-2812.36,0.00022739,3]
[330551658,1719561222635,-500.0,0.00022739,3]
[330551659,1719561222645,-500.0,0.00022739,3]
[330551660,1719561222655,-500.0,0.00022739,3]
[330551661,1719561222665,-500.0,0.00022739,3]
[330551662,1719561222675,-2077.02,0.00022739,3]
[330551663,1719561222685,-751.3,0.00022739,3]
[330551664,1719561222695,-5691.14,0.00022739,3]
[330551665,1719561222705,-1875.87,0.00022739,3]
[330551666,1719561222714,-500.0,0.00022739,3]
[330551667,1719561222725,-2181.6,0.00022739,3]
[330551668,1719561222734,-1783.03,0.00022739,3]
[330551669,1719561222744,-500.0,0.00022739,3]
[330551670,1719561222753,-4551.03,0.00022739,3]
[330551671,1719561222762,-3820.4,0.00022739,3]
[330551672,1719561222772,-1185.76,0.00022739,3]
[330551673,1719561222781,-500.0,0.00022739,3]
[330551674,1719561222791,-500.0,0.00022739,3]
[330551675,1719561222800,-500.0,0.00022739,3]
[330551676,1719561222809,-500.0,0.00022739,3]
[330551677,1719561222819,-1117.03,0.00022739,3]
[330551678,1719561222829,-2776.49,0.00022739,3]
[330551679,1719561222839,-710.75,0.00022739,3]
[330551680,1719561222848,-3480.66,0.00022739,3]
[330551681,1719561222857,-1555.15,0.00022739,3]
[330551682,1719561222867,-5613.75,0.00022739,3]
[330551683,1719561222880,-3058.96,0.00022739,3]
[330551684,1719561222889,-500.0,0.00022739,3]
[330551685,1719561222898,-500.0,0.00022739,3]
[330551686,1719561222908,-820.14,0.00022739,3]
[330551687,1719561222918,-5538.45,0.00022739,3]
[330551688,1719561222928,-918.65,0.00022739,3]
[330551689,1719561222937,-825.28,0.00022739,3]
[330551690,1719561222946,-515.83,0.00022739,3]
[330551691,1719561222957,-500.0,0.00022739,3]
[330551692,1719561222966,-841.57,0.00022739,3]
[330551693,1719561222975,-500.0,0.00022739,3]
[330551694,1719561222984,-10383.18,0.00022739,3]
[330551695,1719561222994,-1039.73,0.00022739,3]
[330551696,1719561223003,-1439.93,0.00022739,3]
[330551697,1719561223013,-6117.5,0.00022739,3]
[330551698,1719561223022,-592.24,0.00022739,3]
[330551699,1719561223031,-1863.96,0.00022739,3]
[330551700,1719561223040,-887.72,0.00022739,3]
[330551701,1719561223051,-4616.67,0.00022739,3]
[330551702,1719561223060,-3531.61,0.00022739,3]
[330551703,1719561223070,-1143.1,0.00022739,3]
[330551704,1719561223079,-500.0,0.00022739,3]
[330551705,1719561223090,-1362.09,0.00022739,3]
[330551706,1719561223101,-500.0,0.00022739,3]
[330551707,1719561223111,-3216.0,0.00022739,3]
[330551708,1719561223119,-1155.64,0.00022739,3]
[330551709,1719561223129,-3529.87,0.00022739,3]
[330551710,1719561223139,-16559.11,0.00022739,3]
[330551711,1719561223148,-3804.04,0.00022739,3]
[330551712,1719561223157,-500.0,0.00022739,3]
[330551713,1719561223167,-850.77,0.00022739,3]
[330551714,1719561223176,-23179.74,0.00022739,3]
[330551715,1719561223186,-1207.75,0.00022739,3]
[330551716,1719561223196,-932.07,0.00022739,3]
[330551717,1719561223205,-1059.78,0.00022739,3]
[330551718,1719561223215,-2084.87,0.00022739,3]
[330551719,1719561223224,-500.0,0.00022739,3]
[330551720,1719561223233,-2749.65,0.00022739,3]
[330551721,1719561223242,-12501.51,0.00022739,3]
[330551722,1719561223251,-547.83,0.00022739,3]
[330551723,1719561223261,-1431.47,0.00022739,3]
[330551724,1719561223270,-736.84,0.00022739,3]
[330551725,1719561223278,-500.0,0.00022739,3]
[330551726,1719561223288,-607.13,0.00022739,3]
[330551727,1719561223297,-2419.31,0.00022739,3]
[330551728,1719561223306,-500.0,0.00022739,3]
[330551729,1719561223315,-694.49,0.00022739,3]
[330551730,1719561223325,-500.0,0.00022739,3]
[330551731,1719561223334,-1192.09,0.00022739,3]
[330551732,1719561223344,-500.0,0.00022739,3]